bitfinex/quotes_ETHUSD_20260129
["timestamp","ask_amount","ask_price","bid_price","bid_amount"]
[1769650452669,2.41624386,2998.0,2997.4,0.002]
[1769650452971,2.41624386,2998.0,2997.2,0.002]
[1769650453162,2.41624386,2998.0,2997.0,1e-08]
[1769650453468,2.41624386,2997.8,2997.0,1e-08]
[1769650454370,3.25021657,2997.7,2997.0,1e-08]
[1769650455475,2.41624386,2997.6,2997.0,1e-08]
[1769650455671,2.41624386,2997.6,2996.3,0.002]
[1769650456176,4.39884056,2997.7,2996.0,1.19140253]
[1769650456177,2.41624386,2997.0,2996.0,0.002]
[1769650456360,0.834251,2996.7,2996.0,0.002]
[1769650456568,2.41624386,2996.6,2996.0,0.002]
[1769650458074,2.41624386,2996.6,2995.5,0.002]
[1769650458255,2.41624386,2996.4,2995.5,0.002]
[1769650459076,0.83436238,2996.3,2995.5,0.002]
[1769650459583,0.83436238,2996.3,2996.0,0.002]
[1769650460079,0.83436238,2996.3,2995.5,0.002]
[1769650460289,2.41624386,2996.2,2995.5,0.002]
[1769650460455,2.41624386,2996.0,2995.5,0.002]
[1769650460855,2.41624386,2996.2,2995.5,0.002]
[1769650461052,3.25066193,2996.1,2995.5,0.002]
[1769650462098,2.41624386,2996.0,2995.0,0.002]
[1769650462378,2.41624386,2995.8,2995.0,0.002]
[1769650462955,2.41624386,2995.6,2994.8,0.002]
[1769650463155,3.25082907,2995.5,2994.8,0.002]
[1769650463880,2.41624386,2995.0,2993.9,0.002]
[1769650464202,0.04986785,2995.1,2993.9,0.002]
[1769650464203,2.41624386,2994.9,2993.9,0.002]
[1769650464400,0.699,2994.8,2993.9,0.002]
[1769650464620,0.04986785,2995.3,2993.9,2.53656156]
[1769650464621,2.41624386,2995.2,2993.9,2.53656156]
[1769650464907,2.41624386,2995.0,2994.0,0.25365616]
[1769650465111,2.41624386,2995.0,2993.9,0.002]
[1769650465112,2.65910221,2994.8,2993.9,0.002]
[1769650465328,0.83455735,2995.6,2994.1,2.55762579]
[1769650465600,3.49365956,2995.6,2994.1,2.55762579]
[1769650465810,2.65910221,2995.5,2994.1,2.55762579]
[1769650466004,2.65910221,2995.5,2994.3,2.55762579]
[1769650466178,0.83455735,2995.6,2994.3,2.55762579]
[1769650466383,10.60005459,2997.4,2994.3,2.55762579]
[1769650466384,2.65910221,2996.1,2994.3,2.55762579]
[1769650466591,5.99667724,2996.2,2994.3,2.55762579]
[1769650466977,2.65910221,2996.1,2994.3,2.55762579]
[1769650467205,2.70897006,2995.9,2994.4,0.25576258]
[1769650467501,2.65910221,2995.4,2994.4,0.25576258]
[1769650467705,2.65910221,2995.4,2994.0,2.55762579]
[1769650468283,2.65910221,2995.2,2993.9,0.002]
[1769650469075,0.83469667,2995.1,2993.9,0.002]
[1769650469287,3.48399596,2995.1,2993.9,0.002]
[1769650469482,2.64929929,2995.0,2993.9,0.002]
[1769650469686,2.64929929,2994.9,2993.9,0.25796258]
[1769650471176,0.83478028,2994.8,2993.9,0.25796258]
[1769650471407,0.83478028,2994.8,2994.2,0.002]
[1769650475419,3.48407957,2994.8,2994.2,0.002]
[1769650476007,2.64929929,2994.7,2994.0,0.002]
[1769650476209,2.64929929,2994.5,2994.0,0.002]
[1769650477002,0.35339474,2994.6,2994.0,0.002]
[1769650477517,0.83486391,2994.5,2994.0,0.002]
[1769650478531,5.98764013,2995.6,2994.0,2.76536194]
[1769650478689,2.64929929,2995.5,2994.1,2.76336194]
[1769650478894,2.64929929,2995.5,2994.2,0.99792767]
[1769650479132,2.64929929,2995.5,2994.0,0.002]
[1769650479626,0.83461307,2995.4,2994.0,2.76536194]
[1769650481719,5.98775158,2995.5,2994.0,2.76536194]
[1769650482231,2.64929929,2995.1,2994.0,0.002]
[1769650482399,2.64929929,2994.9,2994.0,0.002]
[1769650482600,2.919216,2994.9,2994.0,0.002]
[1769650483737,2.919216,2994.9,2993.9,0.002]
[1769650483738,2.64929929,2994.5,2994.2,0.002]
[1769650484035,2.64929929,2994.5,2993.9,0.002]
[1769650485412,0.83482096,2994.7,2993.9,0.002]
[1769650485611,3.48412025,2994.7,2993.9,0.002]
[1769650486915,1.5441398,2994.7,2993.9,0.002]
[1769650487127,2.64929929,2994.6,2993.9,0.002]
[1769650487749,0.83486391,2994.5,2993.9,0.002]
[1769650488852,0.83485413,2994.6,2993.9,0.002]
[1769650489035,0.83482939,2994.7,2993.9,2.76536194]
[1769650489232,1.10467469,2994.9,2993.9,3.04189813]
[1769650489443,0.83475798,2994.9,2993.9,3.04189813]
[1769650489621,0.83474331,2995.0,2993.9,3.04189813]
[1769650489824,3.33848186,2995.4,2993.9,3.04189813]
[1769650490253,2.65029929,2995.3,2993.9,3.04189813]
[1769650491119,0.04986785,2994.9,2993.9,0.002]
[1769650491318,2.64929929,2994.6,2993.3,2.76336194]
[1769650491554,2.919216,2994.5,2993.4,0.27633619]
[1769650491731,2.64929929,2994.5,2993.4,0.27633619]
[1769650491923,0.83489179,2994.4,2993.4,0.27633619]
[1769650492554,0.83489179,2994.4,2993.5,2.76336194]
[1769650493549,0.83489179,2994.4,2993.4,0.27633619]
[1769650493756,0.4174374,2994.3,2993.1,2.76336194]
[1769650494358,0.83494756,2994.2,2993.1,2.76336194]
[1769650495638,0.83494756,2994.2,2993.3,0.002]
[1769650497830,3.75722616,2994.3,2993.3,0.002]
[1769650497831,2.70452505,2995.0,2993.5,0.77403182]
[1769650498062,2.70452505,2995.0,2993.3,0.002]
[1769650498359,2.70452505,2994.8,2993.3,0.77603182]
[1769650498766,2.70452505,2994.8,2993.5,0.78490087]
[1769650500164,3.54023754,2995.1,2993.5,0.78490087]
[1769650500472,0.001,2995.1,2993.7,0.79564005]
[1769650500641,0.001,2995.1,2993.9,0.79564005]
[1769650500841,0.001,2995.1,2994.0,0.80625685]
[1769650505469,0.001,2995.1,2994.1,0.84753632]
[1769650507203,0.001,2995.1,2994.3,0.86744235]
[1769650508266,0.001,2995.1,2994.0,14.5]
[1769650508465,0.001,2995.1,2994.1,1.53350172]
[1769650508466,2.70552505,2995.1,2994.1,1.53350172]
[1769650508878,2.70552505,2995.1,2994.0,0.83499035]
[1769650509298,2.70552505,2995.1,2993.9,16.22191606]
[1769650509673,2.70407505,2995.1,2993.9,15.33501824]
[1769650510184,2.70407505,2995.1,2993.9,0.83501824]
[1769650511398,2.70407505,2995.1,2993.8,15.33504568]
[1769650511399,2.70452505,2995.0,2993.8,15.33504568]
[1769650511606,2.70452505,2995.0,2993.9,2.23250457]
[1769650511901,2.70452505,2995.0,2993.9,0.699]
[1769650512085,2.70452505,2995.0,2993.3,0.83718545]
[1769650512286,2.70452505,2995.0,2993.4,1.53415741]
[1769650512972,2.70452505,2995.0,2993.4,1.5341669]
[1769650513173,2.70452505,2995.0,2993.4,0.699]
[1769650513366,2.69389505,2994.8,2993.3,0.002]
[1769650513580,2.69389505,2994.8,2993.5,0.93560502]
[1769650513981,2.69389505,2994.8,2993.5,0.98547287]
[1769650514276,2.69389505,2994.8,2993.6,0.18206382]
[1769650514482,2.69389505,2994.8,2993.6,1.12685645]
[1769650514682,0.83565968,2995.3,2993.6,1.12685645]
[1769650514889,2.70452505,2995.2,2993.6,1.12685645]
[1769650515191,2.70452505,2995.2,2993.7,14.5]
[1769650515405,2.70452505,2995.1,2993.8,2.39771984]
[1769650515906,2.70452505,2995.1,2993.8,0.83503419]
[1769650516099,2.70452505,2995.1,2993.9,14.5]
[1769650517710,2.70452505,2995.1,2994.0,0.83500334]
[1769650518479,0.001,2995.3,2994.0,1.8211334]
[1769650519014,2.70178505,2995.4,2994.1,0.99752105]
[1769650519217,2.70178505,2995.4,2994.2,0.88225244]
[1769650519714,2.70178505,2995.4,2994.3,0.83491968]
[1769650520016,2.70452505,2995.7,2994.3,1.84104]
[1769650520220,2.70452505,2995.7,2994.4,1.00512032]
[1769650521612,0.001,2995.8,2994.6,1.01361808]
[1769650522025,0.001,2995.8,2994.7,1.8568671]
[1769650522226,0.001,2995.8,2994.8,0.51960997]
[1769650522617,2.70552505,2995.8,2994.8,0.51960997]
[1769650522803,2.70452505,2996.9,2995.5,0.04986785]
[1769650523001,2.70452505,2996.9,2995.7,0.04986785]
[1769650523695,2.70452505,2996.9,2995.8,1.52488679]
[1769650524027,2.70452505,2996.9,2995.9,0.88434163]
[1769650525329,2.70184505,2996.9,2995.8,1.52488679]
[1769650525510,2.88050053,2996.8,2995.9,0.699]
[1769650525698,2.88050053,2996.8,2996.0,0.22238868]
[1769650526594,2.87752053,2996.8,2996.0,0.22238868]
[1769650527018,2.87752053,2996.8,2996.0,1.0568321]
[1769650527398,2.87752053,2996.8,2996.0,0.22238868]
[1769650527699,2.87752053,2996.8,2996.0,1.05683457]
[1769650527899,2.87752053,2996.8,2996.1,0.17558346]
[1769650528722,2.76241932,2996.7,2996.1,0.17558346]
[1769650528925,2.76241932,2996.7,2996.0,0.22238868]
[1769650529504,2.76241932,2996.7,2995.8,0.699]
[1769650530527,2.76112932,2996.7,2995.8,0.699]
[1769650531330,2.76112932,2996.7,2995.8,1.53350015]
[1769650531831,2.76112932,2996.7,2995.8,0.699]
[1769650532424,2.76112932,2996.7,2995.5,0.83456959]
[1769650532425,2.76241932,2996.6,2995.0,0.04986785]
[1769650532638,2.76241932,2996.6,2995.3,0.699]
[1769650533048,2.76241932,2996.4,2995.3,0.699]
[1769650533222,2.76241932,2996.4,2995.3,1.53364079]
[1769650533422,2.76241932,2996.4,2995.4,0.83459934]
[1769650533624,2.76241932,2996.4,2995.5,0.48721433]
[1769650533826,2.76241932,2996.4,2995.4,0.83459936]
[1769650534541,2.76126932,2996.4,2995.6,0.04986785]
[1769650534740,0.001,2996.5,2995.8,0.04986785]
[1769650536523,2.76341932,2996.5,2995.8,0.04986785]
[1769650536717,2.76341932,2996.5,2995.8,0.8843687]
[1769650537638,2.76341932,2996.5,2995.8,0.04986785]
[1769650537850,2.76341932,2996.5,2995.8,0.88436595]
[1769650538355,2.76341932,2996.5,2995.8,0.8843538]
[1769650538928,2.76341932,2996.5,2995.6,3.38801949]
[1769650538929,2.76341932,2996.5,2995.6,0.88440527]
[1769650539556,2.76204932,2996.5,2995.6,0.88440527]
[1769650540252,2.76204932,2996.5,2995.7,0.83451597]
[1769650540860,2.76204932,2996.5,2995.6,0.88441148]
[1769650541149,2.76204932,2996.5,2995.7,0.4222732]
[1769650541982,2.76204932,2996.5,2995.6,0.699]
[1769650542183,2.76241932,2996.4,2995.6,0.699]
[1769650542353,2.59658939,2996.8,2995.9,0.04986785]
[1769650543051,2.59658939,2996.8,2995.9,0.88433423]
[1769650543253,2.59658939,2996.8,2995.9,0.04986785]
[1769650545182,2.59658939,2996.8,2996.0,0.002]
[1769650545363,0.001,2996.6,2996.0,0.002]
[1769650548292,2.76241932,2997.1,2996.0,0.002]
[1769650548496,2.59559042,2997.1,2996.1,0.04986785]
[1769650549653,2.76241932,2998.0,2996.5,0.04986785]
[1769650549854,2.76241932,2998.0,2996.7,0.04986785]
[1769650550260,2.76241932,2997.9,2996.7,0.88410347]
[1769650550673,2.76241932,2997.9,2996.7,0.04986785]
[1769650550874,2.76241932,2997.9,2996.7,0.88410685]
[1769650551487,2.76241932,2997.9,2996.8,0.49202066]
[1769650553988,0.83391866,2997.9,2996.8,0.49202066]
[1769650554307,2.76241932,2997.8,2996.8,1.32624036]
[1769650554604,1.93127172,2997.8,2996.9,0.04986785]
[1769650554804,0.83485226,2998.2,2996.9,0.04986785]
[1769650554805,2.76241932,2998.1,2996.9,0.04986785]
[1769650555126,0.001,2998.2,2996.9,0.04986785]
[1769650555127,0.001,2998.2,2997.1,2.29983876]
[1769650555280,2.8090436,2998.4,2997.1,2.29983876]
[1769650555613,2.8090436,2998.4,2997.2,15.33411183]
[1769650555790,2.8090436,2998.4,2997.3,0.04986785]
[1769650555985,2.8090436,2998.4,2997.4,1.53839797]
[1769650557615,2.6432147,2998.4,2997.4,1.53839797]
[1769650558883,2.6432147,2998.4,2997.3,0.88394544]
[1769650559083,2.6432147,2998.4,2997.3,15.38394544]
[1769650560908,2.9748725,2998.8,2997.7,0.04986785]
[1769650561216,2.9748725,2998.8,2997.8,0.699]
[1769650561586,2.47704257,2998.8,2997.9,0.04986785]
[1769650561783,1.48104257,2998.8,2997.9,0.04986785]
[1769650562300,1.48104257,2998.8,2997.9,0.88378083]
[1769650562692,1.48104257,2998.8,2998.0,14.5]
[1769650562917,1.48104257,2998.8,2998.1,1.53837808]
[1769650563240,2.31471764,2998.8,2998.0,14.5]
[1769650563410,2.31471764,2998.8,2997.3,0.04986785]
[1769650563411,2.31471764,2998.8,2997.8,0.699]
[1769650563610,2.31471764,2998.8,2997.8,0.63738568]
[1769650563915,2.9748725,2998.6,2997.4,0.699]
[1769650564541,2.9748725,2998.6,2997.2,4.0]
[1769650564542,2.9748725,2998.4,2997.2,4.0]
[1769650564716,2.9748725,2998.4,2997.0,1.0617472]
[1769650564908,3.68923485,2998.4,2997.0,0.699]
[1769650566105,2.9748725,2998.4,2997.1,0.04986785]
[1769650566330,2.9748725,2998.4,2997.2,3.72159999]
[1769650566640,2.9748725,2998.2,2997.1,0.04986785]
[1769650567128,2.9748725,2998.2,2997.0,0.699]
[1769650567734,2.9748725,2998.2,2997.0,3.58649223]
[1769650568300,2.9748725,2998.2,2997.1,0.36383601]
[1769650568715,2.9748725,2998.0,2997.0,0.699]
[1769650569943,0.83386144,2998.1,2997.2,0.002]
[1769650570707,3.33644578,2998.2,2997.2,0.002]
[1769650570912,2.9748725,2998.1,2997.2,0.002]
[1769650571849,2.9748725,2998.1,2996.6,0.701]
[1769650572049,2.9748725,2997.9,2996.6,0.701]
[1769650572849,2.9748725,2997.7,2996.6,0.701]
[1769650575646,3.33577957,2998.1,2996.6,0.701]
[1769650575647,2.9758725,2998.2,2996.7,2.88749223]
[1769650575942,2.9758725,2998.2,2996.9,2.88749223]
[1769650575943,3.80971294,2998.2,2996.9,2.88749223]
[1769650576456,2.9748725,2998.1,2996.9,2.88749223]
[1769650578436,2.9748725,2998.1,2996.9,3.72166926]
[1769650578643,2.9748725,2998.1,2997.0,2.88749223]
[1769650578847,2.9748725,2998.1,2997.1,0.37216693]
[1769650579043,0.83485021,2998.2,2997.1,0.37216693]
[1769650579232,0.83485021,2998.2,2997.1,3.25965916]
[1769650580173,0.001,2998.2,2997.1,3.25965916]
[1769650580696,0.001,2998.2,2997.2,2.88749223]
[1769650580843,0.001,2998.2,2997.3,0.32596592]
[1769650581043,2.9758725,2998.2,2997.3,0.32596592]
[1769650581259,2.9758725,2998.2,2997.1,0.37216693]
[1769650582302,2.9758725,2998.2,2996.6,0.002]
[1769650582505,2.9748725,2998.0,2996.6,0.002]
[1769650582669,2.9748725,2998.0,2996.6,2.88949223]
[1769650583397,2.9748725,2998.0,2997.2,0.002]
[1769650584888,3.80878957,2997.9,2997.2,0.002]
[1769650585094,4.52323536,2997.9,2997.2,0.002]
[1769650587221,3.10058868,2997.8,2997.0,0.002]
[1769650589616,3.09605034,2997.6,2997.0,0.002]
[1769650590185,0.83397271,2997.7,2997.0,0.002]
[1769650591710,3.09705034,2998.2,2997.0,0.002]
[1769650591877,0.30970503,2998.1,2997.0,0.002]
[1769650592094,3.40575537,2998.1,2997.0,0.002]
[1769650593789,3.09605034,2997.9,2997.0,0.002]
[1769650594823,3.09605034,2997.9,2996.6,0.002]
[1769650596120,3.09605034,2997.7,2996.6,0.002]
[1769650596336,3.09605034,2997.5,2996.6,0.002]
[1769650598921,3.09605034,2997.3,2996.6,0.002]
[1769650600231,3.09605034,2997.3,2996.0,0.002]
[1769650601300,3.09605034,2997.1,2996.0,0.002]
[1769650601933,0.83411183,2997.2,2996.1,3.08964367]
[1769650602226,3.33615336,2997.5,2996.3,3.08964367]
[1769650603623,3.33615336,2997.5,2996.4,3.08964367]
[1769650605637,3.09705034,2998.0,2996.4,3.08964367]
[1769650606307,3.09705034,2998.0,2996.5,0.002]
[1769650606505,3.09705034,2998.0,2996.6,3.08964367]
[1769650606717,0.001,2997.7,2996.7,3.39880804]
[1769650607100,0.001,2997.7,2996.5,0.002]
[1769650607101,3.09605034,2997.6,2996.5,0.002]
[1769650607737,3.93007869,2997.5,2996.5,0.002]
[1769650607917,0.83402835,2997.5,2996.5,0.002]
[1769650608113,3.09605034,2997.4,2996.5,0.002]
[1769650609012,3.09605034,2997.4,2996.0,3.09164367]
[1769650609214,3.09605034,2997.1,2995.8,0.002]
[1769650609445,3.09605034,2996.9,2995.5,0.002]
[1769650609757,3.09605034,2996.5,2995.5,0.002]
[1769650610509,3.09605034,2996.5,2995.1,0.002]
[1769650610939,3.09605034,2996.3,2995.1,0.002]
[1769650611948,3.09605034,2996.1,2995.1,0.002]
[1769650613012,3.09605034,2996.1,2994.6,0.002]
[1769650613240,3.09605034,2995.9,2994.6,0.002]
[1769650613411,3.09605034,2995.4,2994.1,0.002]
[1769650613939,3.09605034,2995.2,2994.1,0.002]
[1769650614142,3.09605034,2995.0,2994.1,0.002]
[1769650614951,0.39306913,2995.1,2993.3,0.002]
[1769650614952,3.09605034,2994.8,2993.3,0.002]
[1769650615552,3.22573996,2994.4,2993.3,0.002]
[1769650616054,3.22573996,2994.2,2993.3,0.002]
[1769650616434,0.61380262,2994.2,2993.3,0.002]
[1769650616634,0.83491968,2994.3,2993.3,0.002]
[1769650617056,0.83491968,2994.3,2993.3,3.30269851]
[1769650617821,0.83478028,2994.8,2993.3,3.30269851]
[1769650618725,0.83478028,2994.8,2994.3,0.002]
[1769650619243,0.83478028,2994.8,2994.0,0.002]
[1769650619443,1.90865653,2994.8,2994.0,0.002]
[1769650619754,3.22573996,2994.7,2994.0,0.002]
[1769650620052,0.83483603,2994.6,2994.0,0.002]
[1769650620238,4.06057599,2994.6,2993.3,0.002]
[1769650620448,3.22573996,2994.5,2993.3,0.002]
[1769650620656,3.96573197,2994.5,2993.3,0.002]
[1769650620854,3.22573996,2994.3,2993.3,0.002]
[1769650621155,3.22573996,2994.3,2993.2,1e-08]
[1769650621454,3.22573996,2994.3,2993.0,0.002]
[1769650621643,0.73999201,2994.5,2993.0,3.30269851]
[1769650621844,3.22573996,2994.3,2993.1,0.33046985]
[1769650622053,4.06068752,2994.2,2993.0,0.002]
[1769650623155,0.83494756,2994.2,2993.0,3.30269851]
[1769650623329,0.83490643,2994.4,2993.0,3.30269851]
[1769650623524,0.83472454,2995.0,2993.2,3.30069851]
[1769650624124,3.33884782,2995.1,2993.3,0.83519861]
[1769650624329,3.33884782,2995.1,2993.4,3.30069851]
[1769650624548,6.56458778,2995.1,2993.4,3.30069851]
[1769650624734,3.22573996,2995.0,2993.1,4.46640452]
[1769650624928,3.88219874,2994.9,2993.2,0.78094942]
[1769650625138,3.22573996,2994.9,2993.2,0.78094942]
[1769650625353,3.22573996,2994.9,2993.2,1.6161749]
[1769650626140,3.22573996,2994.7,2993.2,0.78094942]
[1769650626331,3.22573996,2994.7,2993.1,3.63116836]
[1769650626528,3.22573996,2994.7,2993.1,0.33046985]
[1769650626728,3.22573996,2994.7,2993.0,0.002]
[1769650626934,3.22573996,2994.5,2993.0,0.002]
[1769650627144,3.22573996,2994.3,2993.0,0.002]
[1769650628356,0.83494756,2994.2,2993.0,0.002]
[1769650628561,0.74004778,2994.1,2993.0,0.002]
[1769650628764,3.96578774,2994.1,2993.0,0.002]
[1769650629142,3.96578774,2994.1,2992.8,0.002]
[1769650630234,0.83503123,2993.9,2992.8,0.002]
[1769650630574,3.22573996,2993.8,2992.8,0.002]
[1769650630771,0.40607712,2993.7,2992.8,0.002]
[1769650631072,0.40607712,2993.7,2993.0,0.002]
[1769650631275,0.40607712,2993.7,2992.7,0.002]
[1769650632863,0.83511491,2993.6,2992.7,0.002]
[1769650635755,0.83511491,2993.6,2992.7,3.30269851]
[1769650635952,0.83511491,2993.6,2992.8,3.63096836]
[1769650636180,6.56547927,2994.3,2992.8,3.63096836]
[1769650636393,0.83483603,2994.6,2992.8,3.63096836]
[1769650636547,0.83483603,2994.6,2993.0,3.30069851]
[1769650636880,0.83483603,2994.6,2993.2,3.30069851]
[1769650637472,4.06057599,2994.6,2993.2,3.30069851]
[1769650637666,4.06057599,2994.6,2993.2,4.13592499]
[1769650637867,0.83483603,2994.6,2993.3,3.30069851]
[1769650639592,0.001,2994.7,2993.3,3.30069851]
[1769650639769,0.83439022,2996.2,2994.2,3.30069851]
[1769650639970,0.83439022,2996.2,2994.6,3.30069851]
[1769650641760,0.001,2996.3,2994.8,3.30069851]
[1769650641964,0.001,2996.3,2995.0,3.30069851]
[1769650643582,0.001,2996.0,2995.0,3.30069851]
[1769650644181,0.001,2996.0,2995.1,0.83469667]
[1769650645066,0.001,2996.0,2995.0,3.30069851]
[1769650645271,0.001,2996.0,2994.9,0.41355067]
[1769650645591,0.001,2996.0,2994.7,0.83479017]
[1769650645763,0.001,2996.0,2994.8,0.83478024]
[1769650645963,0.001,2996.0,2994.7,0.83479016]
[1769650646365,0.001,2996.0,2994.6,4.23349901]
[1769650646791,0.001,2996.0,2994.6,3.39868271]
[1769650647092,0.73331937,2996.0,2994.7,0.42335292]
[1769650647295,0.001,2996.0,2994.7,0.42335292]
[1769650647465,0.001,2996.0,2994.7,3.82203563]
[1769650648311,0.001,2996.0,2994.9,3.39868271]
[1769650649712,0.001,2996.0,2994.7,4.46147406]
[1769650649713,0.001,2996.0,2994.7,0.42335292]
[1769650650171,0.83544592,2996.0,2994.7,0.42335292]
[1769650650367,1.90919285,2996.0,2994.7,0.42335292]
[1769650651195,1.90919285,2996.0,2994.5,3.25025826]
[1769650651196,3.22659383,2995.9,2994.1,3.25025826]
[1769650651498,3.27646168,2995.7,2993.8,4.08529789]
[1769650651795,3.27646168,2995.7,2993.8,4.08529735]
[1769650652000,3.55424,2995.6,2994.0,0.83500294]
[1769650652708,4.06117904,2995.5,2994.0,0.83500294]
[1769650653283,4.06117904,2995.5,2993.9,0.74256445]
[1769650653483,3.22659383,2995.4,2993.8,4.0853112]
[1769650653678,3.22659383,2995.4,2993.9,0.83503043]
[1769650654097,3.22659383,2995.4,2993.9,0.83502977]
[1769650654498,3.22659383,2995.4,2993.8,4.08531202]
[1769650655014,4.06123476,2995.3,2994.2,0.002]
[1769650655204,0.73997985,2995.2,2994.2,0.002]
[1769650655713,3.96657368,2995.2,2994.2,0.002]
[1769650657006,4.0612905,2995.1,2994.2,0.002]
[1769650659914,0.83469667,2995.1,2994.2,0.002]
[1769650660217,0.83458521,2995.5,2994.2,3.25225826]
[1769650660386,0.83458521,2995.5,2994.4,3.25025826]
[1769650661398,0.83458521,2995.5,2994.3,0.32522583]
[1769650661600,0.83458521,2995.5,2994.2,0.002]
[1769650662002,4.06117904,2995.5,2994.2,0.002]
[1769650662797,3.22659383,2995.4,2994.2,0.002]
[1769650663018,3.22659383,2995.3,2994.0,0.002]
[1769650663222,7.87344428,2995.4,2994.0,0.002]
[1769650663223,3.22659383,2995.1,2994.0,0.002]
[1769650663403,3.55424,2995.0,2994.0,0.002]
[1769650663995,0.83475241,2994.9,2994.0,0.002]
[1769650664419,3.22659383,2994.8,2994.0,0.002]
[1769650664720,3.22659383,2994.3,2992.8,0.002]
[1769650664893,3.57261024,2994.2,2992.8,0.002]
[1769650665905,3.22659383,2994.0,2992.8,0.002]
[1769650666916,3.22659383,2993.7,2992.7,0.002]
[1769650668010,0.83511491,2993.6,2992.7,0.002]
[1769650668406,0.83511491,2993.6,2992.7,0.32722583]
[1769650668608,0.83511491,2993.6,2992.7,3.57748409]
[1769650668925,0.83511491,2993.6,2992.7,3.25225826]
[1769650670139,3.57261024,2994.2,2992.8,3.25025826]
[1769650670140,0.83497545,2994.1,2992.8,3.25025826]
[1769650670311,0.83497545,2994.1,2993.0,3.25025826]
[1769650672013,3.22659383,2994.6,2993.2,3.25025826]
[1769650672807,3.22659383,2994.6,2992.9,0.4087607]
[1769650673130,3.22659383,2994.6,2992.8,3.25025826]
[1769650673327,3.22659383,2994.6,2992.8,4.08559077]
[1769650673727,3.22659383,2994.6,2992.9,0.83530674]
[1769650674426,3.22659383,2994.4,2993.0,3.25025826]
[1769650675528,3.38684786,2994.2,2992.7,0.002]
[1769650675827,3.38684786,2994.0,2992.7,0.83736335]
[1769650676027,1.06798299,2994.1,2992.7,3.3267157]
[1769650676329,1.06798299,2994.1,2992.9,3.3247157]
[1769650676523,0.83500334,2994.0,2992.9,3.3247157]
[1769650677098,0.83500334,2994.0,2992.7,0.83734521]
[1769650677328,0.83500334,2994.0,2992.7,0.002]
[1769650677533,4.2218512,2994.0,2992.7,0.002]
[1769650679531,0.001,2993.9,2992.7,0.002]
[1769650679734,0.75728646,2993.9,2992.7,0.41821376]
[1769650680511,0.83505912,2993.8,2992.7,0.41821376]
[1769650682217,0.83505912,2993.8,2992.7,1.25357109]
[1769650682418,4.22190698,2993.8,2992.7,0.41821376]
[1769650682623,4.22190698,2993.8,2992.7,0.002]
[1769650684527,0.83505912,2993.8,2992.7,3.3267157]
[1769650685451,0.001,2993.9,2992.8,3.3247157]
[1769650685648,0.83604177,2993.9,2992.8,3.3247157]
[1769650686641,0.83604177,2993.9,2993.0,3.3247157]
[1769650686642,0.001,2993.9,2993.0,3.3247157]
[1769650686846,0.001,2993.9,2993.1,0.41600259]
[1769650687039,3.38784786,2993.9,2992.7,0.002]
[1769650687229,3.38784786,2993.9,2992.7,0.83736491]
[1769650687429,3.38784786,2993.9,2992.7,0.002]
[1769650687948,0.001,2993.9,2992.9,3.3247157]
[1769650688251,0.001,2993.9,2993.0,3.74071956]
[1769650689857,0.83491968,2994.4,2993.2,3.3247157]
[1769650690236,0.83477154,2994.9,2993.4,3.3247157]
[1769650690556,0.83477154,2994.9,2993.6,3.3247157]
[1769650690735,0.66930423,2994.9,2993.6,3.3247157]
[1769650690941,0.66930423,2994.9,2993.8,3.3247157]
[1769650691457,3.3399792,2995.0,2994.0,3.3247157]
[1769650691458,0.001,2995.0,2994.0,3.3247157]
[1769650692861,0.83447378,2995.9,2994.3,3.37458355]
[1769650693058,0.83447378,2995.9,2994.5,3.3247157]
[1769650693370,0.83447378,2995.9,2994.7,3.3247157]
[1769650693744,1.90920456,2996.0,2994.7,3.3247157]
[1769650693949,0.001,2996.0,2994.7,4.0247157]
[1769650694259,0.001,2996.0,2994.9,3.3247157]
[1769650694442,0.83545261,2996.0,2994.9,3.3247157]
[1769650694963,0.001,2996.0,2994.9,3.3247157]
[1769650695174,0.001,2996.0,2994.9,3.37458355]
[1769650695535,0.001,2996.0,2995.1,3.3247157]
[1769650695734,0.001,2996.0,2995.2,3.74065972]
[1769650695950,0.001,2996.0,2995.2,3.3247157]
[1769650696364,0.83536238,2996.3,2995.2,3.3247157]
[1769650696567,0.001,2996.3,2995.2,3.3247157]
[1769650697570,0.001,2996.3,2995.2,4.15936494]
[1769650697769,0.001,2996.3,2995.3,0.42092328]
[1769650698142,0.001,2996.3,2995.2,0.83466678]
[1769650698472,0.001,2996.3,2995.2,0.83466827]
[1769650698765,0.001,2996.3,2995.1,1.5336763]
[1769650699373,3.38784786,2996.3,2995.1,0.699]
[1769650699538,0.83439022,2996.2,2995.1,0.699]
[1769650700475,0.83439022,2996.2,2995.0,0.83472178]
[1769650700773,0.83439022,2996.2,2995.0,1.53372178]
[1769650701476,0.83439022,2996.2,2995.0,0.83472178]
[1769650701655,0.83439022,2996.2,2995.0,1.53372178]
[1769650701850,0.83439022,2996.2,2995.1,4.14445858]
[1769650702051,0.001,2996.3,2995.1,4.14445858]
[1769650702266,0.001,2996.0,2995.2,0.04986785]
[1769650702481,0.001,2996.3,2995.5,3.3247157]
[1769650702658,0.001,2996.3,2995.6,0.33247157]
[1769650703059,0.83536292,2996.3,2995.6,0.33247157]
[1769650703790,0.001,2996.3,2995.6,0.33247157]
[1769650704171,0.001,2996.3,2995.6,1.16702276]
[1769650705263,0.001,2996.3,2995.6,0.33247157]
[1769650705585,0.001,2996.3,2995.7,0.36571873]
[1769650705882,0.001,2996.3,2995.3,0.83464093]
[1769650706090,0.001,2996.3,2995.3,4.14787494]
[1769650707554,3.50268621,2996.3,2995.2,0.699]
[1769650707795,3.50168621,2996.1,2995.2,0.699]
[1769650707995,3.50168621,2996.1,2995.2,1.53366572]
[1769650708463,3.50168621,2996.1,2995.2,0.83466572]
[1769650709366,3.50168621,2996.1,2995.1,0.83467772]
[1769650709864,0.83444592,2996.0,2995.1,0.83467772]
[1769650710088,0.83443821,2996.1,2995.2,0.48725628]
[1769650710689,0.001,2996.3,2995.2,0.48725628]
[1769650710888,0.001,2996.3,2995.2,4.09338012]
[1769650711388,0.835367,2996.3,2995.2,4.09338012]
[1769650711587,0.835367,2996.3,2995.3,0.49280578]
[1769650711792,0.001,2996.3,2995.3,0.49280578]
[1769650711991,0.001,2996.3,2995.4,4.39086906]